Cogmind - Beta 15 @@@ ROGUE MODE // 2025.07.17 @ 22:08:35 Player: Welles Greysong Result: Destroyed by PH-680(R) with Subdweller Laser Performance ------------- Evolutions (0) 0 Regions Visited (2) 400 Robots Destroyed (6) 30 Value Destroyed (69) 69 Prototype IDs (0) 0 Alien Tech Used (0) 0 Bonus (0) 0 TOTAL SCORE: 499 Bonus ------- None Cogmind --------- Core Integrity 0/250 Matter 286/300 Energy 160/160 System Corruption 1% Temperature Cool (6) Movement Core (1450) Ox28 Location -10/Subcaves Parts ------- > --- POWER (1) -------- Light Nuclear Core > --- PROPULSION (2) --- Light Treads > --- UTILITY (2) ------ Huge Storage Unit Visual Processing Unit > --- WEAPON (2) ------- Small Laser Light Assault Rifle > --- INVENTORY (25) --- Light Ion Engine Light Treads Subdweller Monowheel Heat Sink Small Storage Unit High-capacity Storage Unit Huge Storage Unit Subdweller Optics Seismic Detector EM Pulse Gun Subdweller Laser Battle Rifle Mining Laser Multitool Peak State ------------ > --- POWER ------------ Light Nuclear Core > --- PROPULSION ------- Light Treads Compact Wheel > --- UTILITY ---------- Huge Storage Unit Visual Processing Unit > --- WEAPON ----------- Small Laser Light Assault Rifle > --- INVENTORY -------- Light Ion Engine Light Treads Heat Sink Small Storage Unit High-capacity Storage Unit Huge Storage Unit Seismic Detector EM Pulse Gun Subdweller Laser Mining Laser [Rating: 11] Favorites ----------- Power Ion Engine Engine Ion Engine Power Core Light Nuclear Core Propulsion Compact Wheel Treads Light Treads Wheel Compact Wheel Utility Huge Storage Unit Device Improved Terrain Scanner Storage Huge Storage Unit Processor Visual Processing Unit Weapon Light Assault Rifle Energy Gun Small Laser Ballistic Gun Light Assault Rifle Build | -11 -10 -10 ------- Run | Yrd Mat Sub Slots Evolved . | . . . Power . | . . . Propulsion . | . . . Utility . | . . . Weapon . | . . . Parts Attached 12 | 8 1 3 Power 2 | 1 . 1 Engine 1 | 1 . . Core 1 | . . 1 Reactor . | . . . Propulsion 3 | 2 . 1 Treads 1 | . . 1 Leg . | . . . Wheel 2 | 2 . . Hover . | . . . Flight . | . . . Utility 5 | 3 1 1 Device 2 | 2 . . Storage 2 | 1 1 . Processor 1 | . . 1 Hackware . | . . . Protection . | . . . Artifact . | . . . Weapon 2 | 2 . . Energy Gun 1 | 1 . . Energy Cannon . | . . . Ballistic Gun 1 | 1 . . Ballistic Cannon . | . . . Launcher . | . . . Special Weapon . | . . . Impact Weapon . | . . . Slashing Weapon . | . . . Piercing Weapon . | . . . Special Melee Weapon . | . . . Unidentified Prototypes . | . . . Parts Lost 4 | . . 4 Power 1 | . . 1 Propulsion 2 | . . 2 Utility 1 | . . 1 Weapon . | . . . Highest Loss Streak 2 | . . 2 To Critical Strikes . | . . . Average Backups 10 | 4 9 12 Power 1 | . 1 1 Propulsion 1 | 1 2 1 Utility 4 | . 4 5 Weapon 2 | 1 2 3 Tool/Special . | . . . Unused Backups 12 | . . 12 Power 1 | . . 1 Propulsion 2 | . . 2 Utility 4 | . . 4 Weapon 4 | . . 4 Tool/Special 1 | . . 1 Average Slot Usage (%) 94 | . 100 92 Engine 8 | . 14 6 Core 5 | . . 7 Treads 5 | . . 7 Wheel 20 | . 28 17 Device 6 | . 14 3 Storage 14 | . 14 14 Processor 5 | . . 7 Energy Gun 14 | . 14 14 Ballistic Gun 14 | . 14 14 Peak Build Rating 11 | 9 10 11 Average Rating 9 | 6 9 9 On Entrance 6 | . 9 10 Naked Turns . | . . . Heaviest Build 88 | 13 88 88 Greatest Support 32 | 32 32 32 Greatest Overweight (x) 5 | . 2 5 Average Overweight (x) 2 | . 1 4 Largest Inventory Capacity 25 | 8 25 25 Average Capacity 21 | 7 22 25 Most Carried 14 | 6 12 14 Average Carried 10 | 4 9 12 Final Capacity 25 | 8 25 25 Final Carried 14 | 6 12 14 Class Distribution -------------------- 100% | Mutant Dominant Class ---------------- Mutant | -10/Materials Mutant | -10/Subcaves Resources | -11 -10 -10 ----------- Run | Yrd Mat Sub Matter Collected 343 | 296 12 35 Remotely . | . . . Salvage Created 192 | 117 40 35 Parts 14 | 10 2 2 Haulers Intercepted 1 | . 1 . Recyclers Shooed 1 | 1 . . Parts Field Recycled . | . . . Retrieved Matter . | . . . Parts Self-Destructed 12 | . . 12 Prevented . | . . . Kills | -11 -10 -10 ------- Run | Yrd Mat Sub Combat Hostiles Destroyed 1 | . . 1 Guns 1 | . . 1 Classes Destroyed 4 | 2 1 1 Tunneler 3 | 3 . . Hauler 1 | . 1 . Recycler 1 | 1 . . Subdweller 1 | . . 1 Best Kill Streak 3 | 3 1 1 Combat Bots Only 1 | . . 1 Max Kills in Single Turn 1 | 1 1 1 Gunslinging . | . . . Exploded . | . . . Melee . | . . . Uniques/NPCs Destroyed . | . . . Combat | -11 -10 -10 -------- Run | Yrd Mat Sub Hostile Shots Fired 24 | . 8 16 Missed 10 | . 3 7 Hits 14 | . 5 9 Projectile 14 | . 5 9 AOE 2 | . . 2 Damage Taken 623 | . 97 526 Core 257 | . 64 193 Absorbed by Shields . | . . . Core Remaining (%) 100 | 100 . . Volleys Fired 38 | 16 2 20 Largest 2 | 2 2 2 Hottest 60 | 60 60 60 Shots Fired 66 | 32 4 30 Gun 66 | 32 4 30 Cannon . | . . . Launcher . | . . . Special . | . . . Kinetic 39 | 16 2 21 Thermal 27 | 16 2 9 Explosive . | . . . Electromagnetic . | . . . Robot Hit Streak 7 | 7 3 6 Robot Miss Streak 2 | 2 1 1 Penetration Max . | . . . Secondary Targets . | . . . Shots Hit Robots 39 | 23 3 13 Core Hits 12 | 7 2 3 Critical Kills . | . . . Critical Parts Destroyed . | . . . Critical Strikes . | . . . Melee Attacks . | . . . Impact . | . . . Slashing . | . . . Piercing . | . . . Sneak Attacks . | . . . Combat Hostiles . | . . . Follow-up Attacks . | . . . Damage Inflicted 383 | 243 32 108 Guns 383 | 243 32 108 Cannons . | . . . Explosions . | . . . Melee . | . . . Ramming . | . . . Kinetic 182 | 86 20 76 Thermal 201 | 157 12 32 Explosive . | . . . Electromagnetic . | . . . Impact . | . . . Slashing . | . . . Piercing . | . . . Highest Corruption 1 | . 1 1 Average Corruption 1 | . 1 1 Corruption Purged . | . . . Corruption Blocked . | . . . Effects 2 | . . 2 Matter Fused 1 | . . 1 Misfires 1 | . . 1 Overload Shots . | . . . Overflow Damage . | . . . Projectiles . | . . . Explosions . | . . . Melee . | . . . Knockbacks . | . . . Impact . | . . . Kinetic . | . . . Secondary . | . . . Self-Inflicted Damage . | . . . Shots . | . . . Rammed . | . . . Targets Rammed . | . . . Kicked . | . . . Crushed . | . . . Highest Temperature 40 | 40 20 . Average Temperature 18 | 18 15 . Received Heat Transfer 84 | . 30 54 Siege Activations . | . . . Martial Activations . | . . . Shielding Activations . | . . . Robots Disrupted . | . . . Combat Hostiles . | . . . Robots Corrupted . | . . . Combat Hostiles . | . . . Parts Fried . | . . . Impact Corruptions . | . . . Robots Melted . | . . . Combat Hostiles . | . . . Parts Melted . | . . . Heat Transferred 450 | 350 25 75 Parts Sabotaged . | . . . Parts Stolen . | . . . Parts Stripped . | . . . Power Chain Reactions . | . . . Alert | -11 -10 -10 ------- Run | Yrd Mat Sub Maximum Alert Level . | . . . Low Security (%) 100 | 100 100 . Level 1 . | . . . Level 2 . | . . . Level 3 . | . . . Level 4 . | . . . Level 5 . | . . . High Security . | . . . Max Security . | . . . Peak Influence 15 | 5 15 . Initial . | . . . Average . | . . . Influence Increases 42 | 20 22 . Destroy 0b10 Robot/NC 25 | 20 5 . Destroy Leader 2 | . 2 . Lose Combat Pursuer 15 | . 15 . Influence Decreases 42 | 20 22 . Time Decay 42 | 20 22 . Squads Dispatched 1 | . 1 . Investigation . | . . . Extermination . | . . . Reinforcement 1 | . 1 . Assault . | . . . Garrison . | . . . Intercept . | . . . Searches Triggered . | . . . Construction Impeded . | . . . Haulers Reinforced . | . . . Active Scanning Responses . | . . . Cargo Convoy Interrupts . | . . . Stealth | -11 -10 -10 --------- Run | Yrd Mat Sub Distress Signals 1 | . 1 . Communications Jammed . | . . . Distress Signals . | . . . Times Spotted 7 | . 4 3 Peak Tracking Total 3 | . 3 1 Tactical Retreats 1 | . 1 . Traps | -11 -10 -10 ------- Run | Yrd Mat Sub Traps Triggered 6 | . 1 5 Indirectly . | . . . Trap Hack Attempts . | . . . Triggered . | . . . Disarmed . | . . . Reprogrammed . | . . . Reused . | . . . Traps Extracted . | . . . Installed . | . . . Triggered . | . . . Machines | -11 -10 -10 ---------- Run | Yrd Mat Sub Machines Disabled . | . . . Max in Single Turn . | . . . Machines Repaired . | . . . Machines Dismantled . | . . . Machines Sabotaged . | . . . Overloaded Fab Kills . | . . . Hacking | -11 -10 -10 --------- Run | Yrd Mat Sub Machines Accessed . | . . . Terminals . | . . . Fabricators . | . . . Repair Stations . | . . . Recycling Units . | . . . Scanalyzers . | . . . Garrison Access . | . . . Total Hacks . | . . . Successful . | . . . Failed . | . . . Catastrophic . | . . . Database Lockouts . | . . . Manual . | . . . Terminals . | . . . Fabricators . | . . . Repair Stations . | . . . Recycling Units . | . . . Scanalyzers . | . . . Garrison Access . | . . . Terminal Hacks . | . . . Fabricator Hacks . | . . . Repair Station Hacks . | . . . Recycling Unit Hacks . | . . . Scanalyzer . | . . . Garrison Access Hacks . | . . . Unauthorized Hacks . | . . . Terminals . | . . . Fabricators . | . . . Repair Stations . | . . . Recycling Units . | . . . Scanalyzers . | . . . Garrison Access . | . . . Data Cores Recovered . | . . . Used . | . . . Hacking Detections . | . . . Full Trace Events . | . . . Feedback Events . | . . . Feedback Blocked . | . . . Robot Schematics Acquired . | . . . Robots Built . | . . . Authchips . | . . . Time . | . . . Total Robot Build Rating . | . . . Part Schematics Acquired . | . . . Parts Built . | . . . Authchips . | . . . Time . | . . . Total Part Build Rating . | . . . Parts Repaired . | . . . Time . | . . . Parts Recycled . | . . . Recycled Matter . | . . . Retrieved Matter . | . . . Retrieved Components . | . . . Parts Scanalyzed . | . . . Part Schematics Acquired . | . . . Parts Damaged . | . . . Bothacking | -11 -10 -10 ------------ Run | Yrd Mat Sub Used RIF Installer . | . . . Robots Hacked . | . . . Non-combat . | . . . Combat . | . . . Robot Hacks Applied . | . . . Relay Couplers Released . | . . . Fabnet Peak Effective % . | . . . Robots Rewired . | . . . Allies Hacked . | . . . Hacks Repelled . | . . . Allies | -11 -10 -10 -------- Run | Yrd Mat Sub Total Allies . | . . . Largest Group . | . . . Highest-Rated Group . | . . . Highest-Rated Ally . | . . . Total Orders . | . . . Ally Attacks . | . . . Total Damage . | . . . Kills . | . . . Allies Corrupted . | . . . Allies Melted . | . . . Intel | -11 -10 -10 ------- Run | Yrd Mat Sub Active Infowar (turns) 682 | 88 208 386 Optics 280 | . . 280 Terrain 374 | 60 208 106 Seismic 28 | 28 . . Robot Analysis Total . | . . . Derelict Logs Recovered . | . . . Drone Launches . | . . . Drone Recoveries . | . . . Exploration | -11 -10 -10 ------------- Run | Yrd Mat Sub Turns Passed 877 | 147 208 522 Spaces Moved 521 | 88 152 281 Core 8 | 8 . . Treads . | . . . Legs . | . . . Wheels 513 | 80 152 281 Hover . | . . . Flight . | . . . Fastest Speed 50 | 50 100 130 Average Speed 139 | 95 124 161 Slowest Speed 175 | 100 130 175 Overloaded Moves . | . . . Propulsion Burnouts . | . . . Robots Hopped . | . . . Potential Cave-ins . | . . . Cave-ins Triggered . | . . . Exploration Rate (%) 21 | 5 38 22 Regions Visited 2 Branch Regions 1 Pre-discovered Areas . | . . . Known Exits Taken . | . . . Unknown Exits Taken 2 | 1 1 . Scrap Searched . | . . . Spaces Dug . | . . . Terrain Destroyed . | . . . Melee . | . . . Projectile . | . . . AOE . | . . . Terrain Rammed . | . . . Walls Destroyed . | . . . Machines Disabled . | . . . Actions | -11 -10 -10 --------- Run | Yrd Mat Sub Total 600 | 118 166 316 Wait 14 | . 7 7 Move 519 | 87 151 281 Hop . | . . . Pick Up 17 | 7 5 5 Fast Attach 6 | 6 . . Attach 4 | 1 . 3 Detach . | . . . Swap 2 | 1 1 . Drop . | . . . Fire 38 | 16 2 20 Melee . | . . . Ram . | . . . Kick . | . . . Crush . | . . . Escape Stasis . | . . . Rewire . | . . . Trap . | . . . Miscellaneous . | . . . Route ------- -11/Scrapyard -10/Materials -10/Subcaves (discovered 1 exit: [Scr]) History --------- Turn | Location | Event 28 | -11/Scrapyard | Discovered new exit (range 16) 148 | -11/Scrapyard | Entered Materials 149 | -10/Materials | Met a group of wandering Federalists 310 | -10/Materials | Build established: Mutant 328 | -10/Materials | Discovered new exit (range 16) 356 | -10/Materials | Entered Subcaves 356 | -10/Subcaves | Accompanied by 1 ally 357 | -10/Subcaves | Continued accompanying wandering Federalists (2) 357 | -10/Subcaves | Approached by a straggling Scientist 455 | -10/Subcaves | Shifting Twisted Machinery released Sub. Laser 469 | -10/Subcaves | Core integrity fell below 50% 596 | -10/Subcaves | Core integrity fell below 20% 878 | -10/Subcaves | Destroyed by PH-680(R) with Subdweller Laser Last Messages --------------- 00506_ 13-O7Y(O) collects matter. 00507_ A derelict emerges from the shadows: "Hey wait up! Finally some friendlies. We were scared out of our wits watching Subs pass by here several times." 00508_ 8G-SWZ(u) builds Twisted Machinery. 00529_ System corrupted: Matter fused (-8). 00540_ Subatomizers dissect the Corrupted Salvaging Laser. 00546_ Acquired Sub. Laser. 00551_ Subatomizers dissect the Corrupted Salvaging Laser, destroying it. 00589_ Ion Engine destroyed. 00614_ ES-5C8(R) destroyed. 00635_ Acquired Multitool. 00638_ Acquired Sub. Optics. 00643_ Acquired Sub. Monowheel. 00644_ Acquired 35 matter. 00647_ Acquired Battle Rifle. 00874_ Com. Wheel destroyed. Map ----- +----------------------------------------------------+ | ????# ##??????# #?# ##????????????? | | ????## #?????## #### #####?????????????? | | ????## ##?#### ### #?????????????????? | | ???## # ### #?????????????????? | | ??## ##?????????????????? | | ??# #??????????????????? | | ### ### ### #????????? ????????? | | # ##?##########?## ##??????? ????????? | | # ########???????## ##??????? ?????????? | | # ## #####????## ##?????? #####??????? | | ## #?????# #????? ??????? | | ?# ##????# #????# ?????? | | ## ##???# ###?# ?????? | | ##??# ## #????? | | ## ##?## #??????? | | ## ########## ##?# ###????????? | | ### #??###???## #?# ## ###??????????? | | #####?## ##?#### #?## ##?? #????????????? | | # #????# ### ## #??# #????#????????????? | | ## #????## #??# #?????????????????? | | ## #???### ##??# ##?????????????????? | | # ##???# ;; #### ;###??????????????????? | | #????## R ;; ;;; ;;#???????????????????? | | ##?????## ; #????????????????????? | | # #???????# ##???????????????????? | | ###???????## @ ; #???????????????????? | | ???????????## ;;; #???????????????????? | | ????????????#"" ;#### ;;;#??????????????????? | | ????????????##" ##??#""#; ;#?????????????????? | | ????????????#" "#??""" ;#?????????????????? | | ????????????# ""#? ##"?;; ;#?????????????????? | | ??????????? # ???#?##;;; ##?????????????????? | | ?????????? " ??????####; ;;??????????????????? | | ?????????# #"""?????????? ####?????????????????? | | ?????????###? ?????????? #????????????????????? | | ?????????????##???????????? #????????????????????? | | ??????????????????????????? ????????????????????? | | ???????????????????????????? ????????????????????? | | ????????????????????????????R????????????????????? | | ???????????????????????????? ????????????????????? | | ???????????????????????????? ???????????????????? | | ????????????????????????????? ???????????????????? | | ?????????????????????????????????????????????????? | | ?????????????????????????????????????????????????? | | ?????????????????????????????????????????????????? | | ?????????????????????????????????????????????????? | | ?????????????????????????????????????????????????? | | ?????????????????????????????????????????????????? | | ?????????????????????????????????????????????????? | | ?????????????????????????????????????????????????? | +----------------------------------------------------+ Best States ------------- Heat Dissipation 25 Energy Generation 14 Energy Capacity 250 Matter Stores 300 Matter Capacity 300 Sight Range 18 Terrain Scan Range 16 Terrain Scan Density 10 Evasion (%) 40 Recoil Reduction 1 Item Schematics ----------------- None Robot Schematics ------------------ None Fabricated ------------ Nothing Repaired ---------- Nothing Alien Tech Used ----------------- None Achievements -------------- None Challenges ------------ None Game ------ Seed BiocellGlidesysLog Manual? 0 Play Time 00:08:04 Cumulative 14.5 hours Start 2025.07.17 @ 22:02:34 End 2025.07.17 @ 22:08:35 Sessions 1 Manual Loads 0 Difficulty Rogue Special Mode None Game No. 55 Rogue 55 Adventurer 0 Explorer 0 Win Type - Total 0 Types 0/0/0/0/0/0/0/0/0/0 Lore% 26 Gallery% 32 Achievement% 27 Wizard Run 0 Options --------- Layout 1 ASCII 0 Keyboard 0 Movement Numpad Keybinds 0 Fullscreen 2 Font 24/Smallcaps Map View 50x35 Zoom Use 0% Tactical HUD 1 Map Filters NONE Filters NONE Steam 1 RUN: cb966b3e-9175-4fef-a310-f10acfcf214e